bitfinex/quotes_ETHUSD_20250518
["timestamp","ask_amount","ask_price","bid_price","bid_amount"]
[1747586648617,3.89143783,2569.8,2569.4,2.82933092]
[1747586649724,3.89150671,2569.7,2569.4,2.82933092]
[1747586650320,3.89152968,2569.7,2569.4,2.82933092]
[1747586650521,3.89139016,2569.8,2569.4,2.82933092]
[1747586650700,3.89150925,2569.7,2569.4,0.9263]
[1747586651035,4.89076943,2570.2,2569.4,0.9263]
[1747586651036,3.89167063,2569.6,2569.4,0.9263]
[1747586651343,3.89150626,2569.7,2569.4,0.9263]
[1747586651542,6.25319897,2570.1,2569.3,6.01]
[1747586651842,6.25319897,2570.1,2569.1,1.0065]
[1747586651843,3.89195921,2569.4,2569.2,6.01]
[1747586652147,3.89211069,2569.3,2569.2,6.01]
[1747586652910,3.89241368,2569.1,2569.0,6.47156804]
[1747586653464,3.89241368,2569.1,2569.0,6.01]
[1747586654007,3.89240685,2569.2,2569.0,6.01]
[1747586654534,3.89241368,2569.1,2569.0,6.01]
[1747586656305,3.8925652,2569.0,2568.6,6.01]
[1747586656510,3.89295268,2568.8,2568.7,6.01]
[1747586658052,3.89258678,2569.0,2568.7,6.01]
[1747586658237,3.89258678,2569.0,2568.7,6.611]
[1747586658968,3.89254041,2569.1,2568.8,1.0026]
[1747586659172,0.55,2569.2,2568.7,6.01]
[1747586659341,3.89278773,2568.9,2568.7,6.01]
[1747586659542,3.89286826,2568.8,2568.7,6.01]
[1747586660072,0.9174,2569.2,2568.7,6.01]
[1747586660377,3.89252256,2569.1,2568.7,7.0126]
[1747586660667,3.89260349,2569.0,2568.7,7.0126]
[1747586661877,0.9174,2569.2,2568.7,6.01]
[1747586662338,3.89280412,2568.9,2568.7,6.01]
[1747586662539,3.89280412,2568.9,2568.8,6.01]
[1747586662869,3.8925652,2569.0,2568.9,1.0026]
[1747586663082,3.89245908,2569.1,2568.8,6.01]
[1747586663441,3.89271672,2568.9,2568.8,6.01]
[1747586663637,0.9174,2568.8,2568.4,6.01]
[1747586663873,3.89308497,2568.7,2568.4,6.01]
[1747586664178,3.8928258,2568.9,2568.4,6.01]
[1747586664179,3.89332295,2568.5,2568.4,6.01]
[1747586664386,3.89332295,2568.5,2568.3,6.01]
[1747586664741,3.89323087,2568.6,2568.3,6.01]
[1747586664942,0.55,2568.8,2568.3,6.01]
[1747586665156,3.89347453,2568.4,2568.3,6.01]
[1747586665440,3.89373444,2568.3,2568.1,6.01]
[1747586665975,3.89377774,2568.2,2568.1,6.01]
[1747586666175,3.89362613,2568.3,2568.0,0.06817101]
[1747586666541,4.81080469,2568.5,2568.0,0.06817101]
[1747586666770,3.89340469,2568.5,2568.0,0.06817101]
[1747586667478,3.89320359,2568.6,2568.1,1.0026]
[1747586667640,0.55,2568.8,2568.1,4.89646265]
[1747586667847,3.89342983,2568.5,2568.1,1.0026]
[1747586668141,3.89301981,2568.7,2568.1,4.89652584]
[1747586668474,3.89334792,2568.5,2568.0,4.95947693]
[1747586668685,3.89302026,2568.7,2568.1,5.9099695]
[1747586669092,3.89290991,2568.8,2568.3,3.89360974]
[1747586669292,3.89301594,2568.8,2568.2,4.89637471]
[1747586669486,3.89286826,2568.8,2568.2,4.89637471]
[1747586669676,3.89286826,2568.8,2568.3,0.69124824]
[1747586670291,3.8930394,2568.7,2568.3,0.69124824]
[1747586670856,0.9174,2568.9,2568.2,1.0026]
[1747586671270,3.89324523,2568.6,2568.2,1.0026]
[1747586671476,3.89347453,2568.4,2568.2,7.0126]
[1747586671685,0.9174,2568.9,2568.2,7.0126]
[1747586671882,3.89339352,2568.5,2568.2,7.0126]
[1747586672078,3.89353219,2568.4,2568.2,7.0126]
[1747586672284,3.89362613,2568.3,2568.2,7.0126]
[1747586672483,0.9174,2568.9,2568.2,7.0126]
[1747586672659,3.89293827,2568.8,2568.2,10.90625329]
[1747586672991,0.9174,2568.9,2568.3,3.89361384]
[1747586673171,3.89296477,2568.8,2568.3,3.93255017]
[1747586673373,3.89304934,2568.7,2568.2,13.21209587]
[1747586673697,8.183,2569.1,2568.2,2.30573391]
[1747586673994,3.89418716,2568.0,2567.7,1.47716804]
[1747586674195,3.89418716,2568.0,2567.7,1.0156]
[1747586674595,3.89425443,2567.9,2567.7,1.0156]
[1747586674896,1.0041,2568.6,2567.7,1.0156]
[1747586674897,3.89373297,2568.3,2567.7,1.0156]
[1747586675096,3.89421584,2568.0,2567.8,8.189]
[1747586675465,3.89421584,2568.0,2567.7,1.0156]
[1747586675784,3.89421584,2568.0,2567.8,8.189]
[1747586676162,3.89400394,2568.1,2567.8,8.189]
[1747586677091,3.8940957,2568.0,2567.8,8.189]
[1747586677962,3.89382319,2568.2,2567.8,8.189]
[1747586678577,3.89382319,2568.2,2567.8,10.91810616]
[1747586679279,3.89379946,2568.2,2567.8,10.91810616]
[1747586679996,3.89365477,2568.3,2567.8,14.81239346]
[1747586680297,3.89365477,2568.3,2567.8,10.91810616]
[1747586680298,3.89385131,2568.2,2567.8,10.91810616]
[1747586680478,3.89385131,2568.2,2567.9,6.01]
[1747586680676,3.89352286,2568.4,2567.9,6.01]
[1747586680677,3.89361115,2568.4,2567.9,6.01]
[1747586680879,3.89380937,2568.2,2567.9,6.01]
[1747586681083,3.89332295,2568.5,2568.0,6.01]
[1747586681290,3.89392936,2568.1,2568.0,6.01]
[1747586681486,1.0049,2568.1,2567.5,6.9483]
[1747586681686,3.89455874,2567.7,2567.5,6.9483]
[1747586682509,3.89433223,2567.9,2567.5,6.9483]
[1747586683418,3.89378368,2568.2,2567.5,10.84302573]
[1747586683712,3.89418625,2568.0,2567.5,11.67001809]
[1747586683910,3.89386715,2568.2,2567.6,3.89468764]
[1747586684114,3.89386715,2568.2,2567.7,3.89451966]
[1747586684289,3.89395091,2568.1,2567.6,3.89463245]
[1747586684488,3.89395091,2568.1,2567.6,6.27010019]
[1747586684686,3.89368604,2568.3,2567.8,3.89429106]
[1747586684892,3.89340342,2568.5,2567.9,6.955]
[1747586685073,3.89340342,2568.5,2568.0,3.89404379]
[1747586685479,3.89354468,2568.4,2567.9,10.84915277]
[1747586685819,3.89354468,2568.4,2567.9,12.32351684]
[1747586686525,3.89307271,2568.7,2568.0,9.94289416]
[1747586686823,3.89307271,2568.7,2568.0,6.01]
[1747586686824,3.89341239,2568.5,2568.0,6.01]
[1747586687024,3.89341239,2568.5,2568.0,9.90406828]
[1747586687195,3.89341239,2568.5,2568.0,6.01]
[1747586687389,3.89341239,2568.5,2568.0,13.16252712]
[1747586687590,3.89348495,2568.4,2568.1,0.37213515]
[1747586687797,3.89304148,2568.7,2568.1,0.37213515]
[1747586688003,3.89377774,2568.2,2568.1,0.37213515]
[1747586688711,3.89377774,2568.2,2568.0,6.01]
[1747586688913,3.89351231,2568.4,2568.0,6.01]
[1747586689115,3.89375865,2568.3,2568.0,6.01]
[1747586689310,3.89378896,2568.2,2568.0,6.01]
[1747586689642,3.89301981,2568.7,2568.0,6.61278731]
[1747586690135,3.89325875,2568.6,2568.1,3.89390784]
[1747586690329,3.89325875,2568.6,2568.0,10.506759]
[1747586690490,3.89289718,2568.8,2568.1,4.89872537]
[1747586690685,3.89308206,2568.7,2568.2,3.89377103]
[1747586690884,3.89308206,2568.7,2568.1,1.0049]
[1747586690885,3.8930141,2568.8,2568.1,1.0049]
[1747586691099,3.8930141,2568.8,2568.1,2.58576873]
[1747586691299,3.89271672,2568.9,2568.1,2.58576873]
[1747586691603,3.89286826,2568.8,2568.2,9.90368956]
[1747586691802,0.9514,2569.6,2568.4,1.0049]
[1747586692001,0.9514,2569.6,2568.3,14.22193161]
[1747586692002,1.94363071,2570.0,2569.3,1.0049]
[1747586692260,1.94363071,2570.0,2569.5,4.89658394]
[1747586692404,5.83469797,2570.0,2569.5,4.8966853]
[1747586692736,5.83469797,2570.0,2569.5,1.0049]
[1747586692915,3.89120366,2569.9,2569.5,1.0049]
[1747586693434,1.94363071,2570.0,2569.5,3.73188161]
[1747586693738,1.94363071,2570.0,2569.5,7.62363129]
[1747586693903,1.94363071,2570.0,2569.7,3.8913969]
[1747586694217,1.94363071,2570.0,2569.6,3.89160791]
[1747586694619,1.94363071,2570.0,2569.5,3.73188161]
[1747586694937,1.94363071,2570.0,2569.7,3.89150484]
[1747586695108,1.94363071,2570.0,2569.8,1.0049]
[1747586695309,1.94363071,2570.0,2569.9,8.17]
[1747586695510,1.94363071,2570.0,2569.9,14.18]
[1747586695710,3.89105058,2570.0,2569.9,6.01]
[1747586696310,3.89094609,2570.1,2569.9,6.01]
[1747586696640,3.89105058,2570.0,2569.9,6.01]
[1747586698640,3.89150484,2569.7,2569.5,6.01]
[1747586699153,4.84245932,2570.0,2569.5,6.01]
[1747586699450,0.9514,2570.0,2569.5,6.01]
[1747586699612,3.89094975,2570.1,2569.5,6.01]
[1747586699613,3.8912202,2569.9,2569.5,7.91757766]
[1747586699951,3.89106539,2570.0,2569.5,11.80937934]
[1747586700264,3.89096898,2570.1,2569.6,3.89164225]
[1747586700846,3.89069921,2570.3,2569.7,4.93523894]
[1747586701018,3.89077394,2570.2,2569.8,0.49352389]
[1747586701227,3.89077394,2570.2,2569.7,4.89633456]
[1747586701936,12.84183481,2570.5,2569.5,6.01]
[1747586702250,3.89091025,2570.1,2569.5,6.01]
[1747586702422,3.89122443,2569.9,2569.6,1.0049]
[1747586703151,3.89150484,2569.7,2569.6,1.0049]
[1747586703348,3.89124981,2569.9,2569.3,6.01]
[1747586703547,3.89193838,2569.5,2569.2,6.01]
[1747586703750,3.89168756,2569.6,2569.2,6.97156914]
[1747586703921,3.89183996,2569.5,2569.2,6.97156914]
[1747586704630,3.89160275,2569.7,2569.2,6.97156914]
[1747586704953,3.89170097,2569.6,2569.2,6.97156914]
[1747586705151,0.9514,2570.0,2569.2,10.86379593]
[1747586705152,3.89124028,2569.9,2569.2,10.86379593]
[1747586705447,3.89141107,2569.8,2569.2,10.86379593]
[1747586705650,3.89120199,2569.9,2569.3,2.00356959]
[1747586705855,3.89110991,2570.0,2569.4,1.00031494]
[1747586706152,3.89122113,2569.9,2569.4,13.01233595]
[1747586706326,3.89111093,2570.0,2569.4,13.01233595]
[1747586707159,3.89111093,2570.0,2569.5,3.89174936]
[1747586707326,3.89111093,2570.0,2569.6,8.167]
[1747586707527,3.89111093,2570.0,2569.6,14.177]
[1747586708245,3.89150484,2569.7,2569.6,6.01]
[1747586709533,3.89165628,2569.6,2569.0,6.9775]
[1747586709857,3.89241368,2569.1,2569.0,6.9775]
[1747586710435,3.89241368,2569.1,2569.0,6.01]
[1747586713280,3.89301981,2568.7,2568.6,6.01]
[1747586714554,0.9748,2568.8,2568.6,6.01]
[1747586714905,3.892888,2568.8,2568.6,6.01]
[1747586715049,3.89301981,2568.7,2568.6,6.01]
[1747586715445,3.93985334,2568.7,2568.6,6.01]
[1747586715780,3.89353845,2568.4,2568.2,14.178]
[1747586716096,3.89353845,2568.4,2568.3,6.01]
[1747586717353,3.89407368,2568.1,2568.0,6.01]
[1747586718578,3.89438429,2567.8,2567.7,16.809]
[1747586718780,3.89453596,2567.7,2567.6,6.01]
[1747586719895,4.88237339,2568.1,2567.6,6.01]
[1747586719896,8.9884,2568.1,2567.6,6.01]
[1747586720196,3.89431413,2567.9,2567.6,6.01]
[1747586720386,3.89432581,2567.9,2567.6,6.01]
[1747586720583,0.9623,2568.4,2567.7,0.9359]
[1747586720896,0.9623,2568.4,2567.8,6.01]
[1747586721229,8.151,2568.5,2567.8,9.90435568]
[1747586721230,3.89336163,2568.5,2567.8,9.90435568]
[1747586721425,0.9623,2569.0,2567.9,4.86905207]
[1747586721728,3.89312241,2568.7,2568.1,3.89379227]
[1747586721906,3.89312241,2568.7,2568.2,14.25874923]
[1747586722104,3.89286379,2568.9,2568.2,14.25874923]
[1747586722305,3.89236989,2569.2,2568.3,6.9459]
[1747586722508,3.89214695,2569.3,2568.6,3.89315009]
[1747586722716,3.89214695,2569.3,2568.7,6.01]
[1747586722916,3.89260202,2569.0,2568.8,0.9359]
[1747586723194,3.89286826,2568.8,2568.7,6.01]
[1747586724743,3.89347453,2568.4,2568.3,6.01]
[1747586724916,3.89385633,2568.2,2567.9,9.0849]
[1747586725249,3.89402683,2568.1,2567.8,6.01]
[1747586725401,3.89402683,2568.1,2567.8,9.26079]
[1747586725916,3.89416242,2568.0,2567.8,9.26079]
[1747586726135,0.9623,2568.5,2567.5,6.01]
[1747586726136,3.89368633,2568.3,2567.5,6.01]
[1747586726358,0.04683353,2568.2,2567.4,0.9359]
[1747586726561,3.8945985,2567.7,2567.5,8.15]
[1747586726843,3.8945985,2567.7,2567.3,6.01]
[1747586727026,3.89445334,2567.8,2567.3,9.90513487]
[1747586727341,3.89457164,2567.7,2567.3,8.29864059]
[1747586727525,3.89425699,2567.9,2567.3,8.29864059]
[1747586727858,1.00913353,2568.1,2567.3,6.01]
[1747586728002,3.89465778,2567.7,2567.4,8.15]
[1747586728404,3.89476295,2567.6,2567.4,8.15]
[1747586728950,3.8943321,2567.9,2567.4,8.15]
[1747586729624,3.89415697,2568.0,2567.5,0.958]
[1747586729832,0.9751,2568.5,2567.9,3.89421302]
[1747586730139,3.89330411,2568.6,2568.1,0.958]
[1747586730709,3.89330411,2568.6,2568.1,4.85190179]
[1747586731066,3.89292377,2568.8,2568.3,3.89354386]
[1747586731338,0.9751,2569.1,2568.3,1.68923748]
[1747586731528,3.89258868,2569.0,2568.4,6.01]
[1747586731730,3.89287629,2568.8,2568.4,6.01]
[1747586732042,4.86756329,2569.1,2568.5,6.01]
[1747586732354,3.8928217,2568.9,2568.5,6.01]
[1747586732526,3.89235812,2569.2,2568.6,7.9972736]
[1747586732731,3.89235812,2569.2,2568.6,11.85140467]
[1747586733119,9.1261,2569.7,2568.6,16.10334326]
[1747586733307,3.89151271,2569.7,2569.1,3.89239134]
[1747586733531,5.83503151,2569.8,2569.2,16.295]
[1747586733756,1.94363071,2569.8,2569.3,6.01]
[1747586733921,3.89189674,2569.5,2569.3,6.01]
[1747586734122,3.89195921,2569.4,2569.3,6.01]
[1747586734424,4.44195921,2569.4,2569.3,6.01]
[1747586734621,5.43015921,2569.4,2569.3,6.01]
[1747586735320,4.4425652,2569.0,2568.9,16.814]
[1747586735520,3.89301981,2568.7,2568.6,8.15]
[1747586736418,3.89246238,2569.1,2568.6,8.15]
[1747586736734,3.89205921,2569.4,2568.8,3.89277847]
[1747586736949,0.9305,2569.8,2568.9,6.04892321]
[1747586737150,3.89161412,2569.7,2569.1,3.89241368]
[1747586737349,3.89161412,2569.7,2569.2,8.15]
[1747586738542,0.55,2570.0,2569.2,8.15]
[1747586738863,3.8917661,2569.6,2569.2,8.15]
[1747586739863,3.89148718,2569.8,2569.2,12.04223502]
[1747586740024,3.8914722,2569.8,2569.2,12.04223502]
[1747586740224,3.89153928,2569.7,2569.3,1.35183615]
[1747586740523,0.55,2570.0,2569.3,1.35183615]
[1747586740524,4.44110408,2570.0,2569.5,0.907]
[1747586740727,3.89105058,2570.0,2569.5,0.907]
[1747586740960,3.89161095,2569.7,2569.5,0.907]
[1747586742126,0.55,2569.9,2569.2,0.907]
[1747586742360,0.04683353,2569.8,2569.0,24.959]
[1747586742661,3.89180774,2569.5,2569.1,3.4029]
[1747586742832,3.8916287,2569.7,2569.1,3.44182215]
[1747586743023,3.8916287,2569.7,2569.1,7.29519712]
[1747586743224,3.89126034,2569.9,2569.3,3.8920274]
[1747586743447,3.89105637,2570.0,2569.5,4.79873085]
[1747586743651,3.89112791,2570.0,2569.6,8.62787309]
[1747586743845,3.8912346,2569.9,2569.6,8.62787309]
[1747586744045,0.55,2570.2,2569.6,8.148]
[1747586744247,3.89089918,2570.1,2569.6,8.148]
[1747586744453,3.89055077,2570.4,2569.7,3.89148685]
[1747586744983,4.79635446,2570.8,2569.9,0.9917]
[1747586745162,3.89058408,2570.4,2569.9,0.9917]
[1747586745325,3.89058408,2570.4,2570.0,0.48829729]
[1747586745765,3.89071669,2570.3,2570.0,0.48829729]
[1747586745971,3.89105058,2570.0,2569.9,9.1267]
[1747586746139,3.89105058,2570.0,2569.9,17.2737]
[1747586747684,3.89184195,2569.5,2569.4,8.147]
[1747586747889,0.55,2570.1,2569.4,8.147]
[1747586748103,3.89180774,2569.5,2569.4,8.147]
[1747586748870,3.89078698,2570.2,2569.6,0.9917]
[1747586749074,3.89103021,2570.1,2569.6,0.9917]
[1747586749363,3.8910574,2570.0,2569.6,0.9917]
[1747586749564,16.132,2570.7,2569.4,9.87417]
[1747586749565,0.9065,2571.4,2569.8,8.0]
[1747586749763,3.88923459,2571.2,2570.1,0.9917]
[1747586749977,3.89059642,2570.3,2570.2,8.147]
[1747586750193,3.8907478,2570.2,2569.7,0.9917]
[1747586750418,3.89093699,2570.1,2569.9,8.147]
[1747586750556,3.89014237,2570.6,2569.8,8.146]
[1747586750761,3.8910607,2570.0,2569.7,0.9917]
[1747586751120,4.44029371,2570.5,2569.7,0.9917]
[1747586751121,3.89044506,2570.4,2569.8,8.146]
[1747586751322,3.89112953,2570.0,2569.7,9.1377]
[1747586751532,3.89058174,2570.4,2569.7,9.1377]
[1747586751803,3.89059642,2570.3,2569.7,13.02917527]
[1747586752307,3.89077642,2570.2,2569.7,13.02917527]
[1747586752551,3.89060621,2570.3,2569.8,5.19416987]
[1747586752669,3.89067241,2570.3,2569.8,1.30291753]
[1747586753009,0.55,2570.5,2569.8,1.30291753]
[1747586753179,3.89100189,2570.1,2569.7,9.1377]
[1747586753382,3.89128045,2569.9,2569.7,0.9917]
[1747586753684,3.89098373,2570.1,2569.7,0.9917]
[1747586753872,3.89081123,2570.2,2569.7,0.9917]
[1747586754205,3.89081123,2570.2,2569.7,2.29462807]
[1747586754512,3.89071744,2570.3,2569.7,2.29462807]
[1747586754683,3.89102487,2570.1,2569.7,2.29462807]
[1747586754891,3.8909888,2570.1,2569.7,2.29462807]
[1747586755209,3.89112897,2570.0,2569.7,0.9917]
[1747586755374,3.89121599,2569.9,2569.7,0.9917]
[1747586755571,3.89111728,2570.0,2569.8,6.01]
[1747586755881,3.89120199,2569.9,2569.8,6.01]
[1747586756193,0.55,2570.1,2569.4,9.0731]
[1747586756396,3.89180774,2569.5,2569.4,9.0731]
[1747586756595,3.89157971,2569.7,2569.4,9.0731]
[1747586756596,3.89172021,2569.6,2569.4,9.0731]
[1747586756983,3.89141095,2569.8,2569.4,9.0731]
[1747586757181,3.89168446,2569.6,2569.4,9.0731]
[1747586757411,3.89146429,2569.8,2569.4,10.58141]
[1747586757612,3.8908657,2570.2,2569.6,0.9441]
[1747586757775,3.8908657,2570.2,2569.7,6.01]
[1747586757974,3.89092246,2570.1,2569.7,6.01]
[1747586758186,3.89105834,2570.0,2569.7,6.01]
[1747586758487,3.89105834,2570.0,2569.7,7.90738411]
[1747586759313,3.89116536,2570.0,2569.7,7.90738411]
[1747586759786,3.89097537,2570.1,2569.7,7.90738411]
[1747586760616,0.55,2570.4,2569.7,7.90738411]
[1747586760785,3.89115457,2570.0,2569.7,6.01]
[1747586760986,3.89115457,2570.0,2569.8,8.129]
[1747586761313,3.89135341,2569.8,2569.7,6.01]
[1747586762323,3.89135341,2569.8,2569.6,6.01]
[1747586762324,3.89150484,2569.7,2569.6,6.01]
[1747586764626,4.44150484,2569.7,2569.6,6.01]
[1747586764991,3.89211069,2569.3,2569.2,6.01]
[1747586765390,3.89226218,2569.2,2569.1,0.46458374]
[1747586766350,4.44226218,2569.2,2569.1,0.46458374]
[1747586766818,5.02056218,2569.2,2569.1,0.46458374]
[1747586768110,3.89226218,2569.2,2569.1,0.46458374]
[1747586769022,4.44226218,2569.2,2569.1,0.46458374]
[1747586769823,3.89226218,2569.2,2569.1,0.46458374]
[1747586770239,3.89218289,2569.3,2569.1,0.46458374]
[1747586770438,3.89226218,2569.2,2569.1,0.46458374]
[1747586770956,4.44226218,2569.2,2569.1,0.46458374]
[1747586771754,3.89226218,2569.2,2569.1,0.46458374]
[1747586771955,3.89181412,2569.5,2569.1,0.46458374]
[1747586772100,3.89189438,2569.5,2569.2,0.822]
[1747586773223,3.89150484,2569.7,2569.2,14.962]
[1747586773562,0.5783,2570.9,2569.9,8.822]
[1747586773720,0.5783,2570.9,2570.0,14.14]
[1747586773910,3.89039434,2570.5,2570.0,14.14]
[1747586774110,3.89039434,2570.5,2570.1,6.01]
[1747586774506,3.88995011,2570.8,2570.2,10.72264869]
[1747586774744,3.89001879,2570.7,2570.3,6.01]
[1747586775049,8.123,2571.1,2570.3,9.90048127]
[1747586775050,3.88977184,2570.9,2570.3,9.90048127]
[1747586775347,3.89010933,2570.7,2570.4,14.14]
[1747586776007,3.89029371,2570.5,2570.4,14.14]
[1747586776504,3.89007717,2570.7,2570.4,14.14]
[1747586776709,3.88953714,2571.0,2570.4,14.32876271]
[1747586776920,3.88964262,2571.0,2570.5,0.822]
[1747586777120,3.88964262,2571.0,2570.5,6.832]
[1747586777352,3.8891476,2571.3,2570.7,3.88994517]
[1747586777523,3.88893209,2571.4,2570.7,3.88994517]
[1747586777822,8.121,2571.7,2570.8,4.7507257]
[1747586778031,8.121,2571.7,2570.9,8.129]
[1747586778032,3.88944312,2571.1,2570.9,8.129]
[1747586778244,3.88955324,2571.0,2570.8,0.822]
[1747586778431,0.55,2571.6,2571.0,8.129]
[1747586778613,3.88918912,2571.3,2571.0,8.129]
[1747586778812,3.88902374,2571.4,2571.0,9.5438903]
[1747586779432,3.88856113,2571.7,2571.0,9.5438903]
[1747586779632,3.88938586,2571.1,2570.8,0.822]
[1747586779847,3.88938586,2571.1,2570.9,8.129]
[1747586780242,3.88953714,2571.0,2570.9,8.129]
[1747586780426,3.88968843,2570.9,2570.8,0.822]
[1747586780745,3.88908334,2571.3,2570.9,8.129]
[1747586780944,3.88923459,2571.2,2570.9,8.129]
[1747586781246,3.88923459,2571.2,2570.9,9.82786106]
[1747586781815,3.88940389,2571.1,2570.9,9.82786106]
[1747586782018,3.88953714,2571.0,2570.8,0.822]
[1747586782222,3.88948372,2571.1,2570.8,8.95]
[1747586782437,3.88930397,2571.2,2570.8,8.95]
[1747586782645,3.88947536,2571.1,2570.8,8.95]
[1747586782850,3.88968843,2570.9,2570.8,8.95]
[1747586783044,3.88961628,2571.0,2570.8,8.95]
[1747586783343,3.8892956,2571.2,2570.8,9.845]
[1747586783512,3.88938735,2571.1,2570.8,9.845]
[1747586783708,3.88959641,2571.0,2570.8,9.845]
[1747586783940,3.88938735,2571.1,2570.8,9.845]
[1747586784107,3.88884778,2571.5,2570.8,9.845]
[1747586784306,12.55558594,2571.7,2570.9,6.01]
[1747586784533,3.88934149,2571.2,2570.9,6.01]
[1747586784945,3.88939711,2571.1,2570.9,6.01]
[1747586785157,3.88953714,2571.0,2570.9,5.42]
[1747586785516,3.88944418,2571.1,2570.9,5.42]
[1747586785729,3.88919496,2571.3,2570.9,5.42]
[1747586785932,3.88946529,2571.1,2570.9,5.42]
[1747586786329,12.46664974,2571.8,2570.9,6.78307074]
[1747586786625,3.88868862,2571.6,2571.1,4.6737853]
[1747586786828,20.00190599,2572.1,2571.1,0.8232892]
[1747586787037,3.88870517,2571.6,2571.2,5.42]
[1747586787336,3.88891585,2571.5,2571.3,8.115]
[1747586787537,3.88891585,2571.5,2571.4,5.42]
[1747586788115,3.88851534,2571.7,2571.4,6.7735]
[1747586788314,0.5783,2572.5,2571.5,6.24328565]
[1747586788547,0.5783,2572.5,2571.6,5.42]
[1747586788740,8.0,2572.6,2571.7,4.69696483]
[1747586788955,8.0,2572.6,2571.8,8.115]
[1747586788956,3.88785442,2572.2,2571.8,8.115]
[1747586789161,3.88784572,2572.2,2571.8,10.74950509]
[1747586789655,3.88787819,2572.1,2571.8,10.74950509]
[1747586790035,3.88768727,2572.3,2571.8,10.74950509]
[1747586790230,3.8879464,2572.1,2571.8,10.74950509]
[1747586790661,3.8877735,2572.2,2571.9,5.42]
[1747586790950,3.8877735,2572.2,2572.0,0.8085]
[1747586791963,3.88765853,2572.3,2572.0,0.8085]
[1747586792246,3.88780678,2572.2,2572.0,0.8085]
[1747586792655,3.88787372,2572.1,2572.0,0.8085]
[1747586792846,3.88787372,2572.1,2572.0,8.9215]
[1747586793358,3.88783541,2572.2,2572.0,8.9215]
[1747586793818,3.88764249,2572.3,2572.0,8.9215]
[1747586794019,3.88754749,2572.4,2572.0,11.55548207]
[1747586794255,3.88731886,2572.5,2572.0,11.55548207]
[1747586794256,3.88757426,2572.3,2572.0,11.55548207]
[1747586794455,3.88748811,2572.4,2572.0,11.55548207]
[1747586794625,3.88772257,2572.2,2572.1,5.42]
[1747586794835,3.88772257,2572.2,2572.1,13.533]
[1747586795968,3.88696699,2572.7,2572.1,5.42]
[1747586796153,0.5783,2572.9,2572.1,13.532]
[1747586796384,12.43651379,2573.0,2572.2,6.2048]
[1747586796674,3.88723216,2572.6,2572.3,5.42]
[1747586796831,3.88698049,2572.7,2572.3,5.42]
[1747586796832,3.88727542,2572.5,2572.3,5.42]
[1747586797028,0.39614988,2574.0,2572.4,5.42]
[1747586797231,0.39614988,2574.0,2572.5,0.82366873]
[1747586797232,3.88666338,2573.0,2572.5,0.82366873]
[1747586797457,3.88662793,2573.0,2572.6,8.112]
[1747586797623,3.88661594,2573.0,2572.6,8.112]
[1747586797828,2.52193071,2573.4,2572.6,8.112]
[1747586797829,3.8867384,2572.9,2572.6,8.112]
[1747586798029,3.88622913,2573.2,2572.6,8.112]
[1747586798265,3.8869541,2572.8,2572.6,8.112]
[1747586798479,3.88669438,2572.9,2572.6,2.34359019]
[1747586798780,3.88668606,2572.9,2572.5,0.7848]
[1747586798929,3.88711809,2572.6,2572.5,8.8958]
[1747586800669,3.88711809,2572.6,2572.5,14.3158]
[1747586800968,3.88711809,2572.6,2572.5,5.42]
[1747586801331,3.88681947,2572.8,2572.5,5.42]
[1747586801527,3.88649077,2573.1,2572.5,5.42]
[1747586801724,3.88703717,2572.7,2572.5,5.42]
[1747586801964,3.88676832,2572.9,2572.5,6.7731]
[1747586802168,3.88676832,2572.9,2572.6,0.8101]
[1747586802376,0.5783,2573.4,2572.6,0.8101]
[1747586802659,3.8863948,2573.1,2572.7,5.42]
[1747586802867,3.88625195,2573.2,2572.8,13.53]
[1747586803031,3.88625195,2573.2,2572.9,5.42]
[1747586803232,3.88643621,2573.1,2572.9,5.42]
[1747586803455,3.88658246,2573.0,2572.8,8.11]
[1747586803666,3.88658246,2573.0,2572.6,14.3321]
[1747586803667,3.88666485,2572.9,2572.7,8.101]
[1747586803889,3.88659073,2573.0,2572.9,8.11]
[1747586804234,8.5783,2573.7,2573.0,0.8268]
[1747586804434,3.88636275,2573.1,2573.0,8.9368]
[1747586805187,3.88636275,2573.1,2573.0,8.9358]
[1747586806189,3.88629873,2573.2,2573.0,8.9358]
[1747586806394,3.88609757,2573.3,2573.0,8.9358]
[1747586806588,3.88636275,2573.1,2573.0,8.9358]
[1747586806884,3.88628103,2573.2,2573.0,8.9358]
[1747586807389,3.88598231,2573.4,2573.0,8.9358]
[1747586807585,3.88545673,2573.7,2573.0,10.63928]
[1747586807790,3.88636275,2573.1,2573.0,0.8268]
[1747586807974,3.88636275,2573.1,2573.0,8.9358]
[1747586808358,3.88636275,2573.1,2573.0,0.8268]
[1747586809509,3.88669908,2572.9,2572.6,0.7963]
[1747586809796,0.55,2573.4,2572.6,0.7963]
[1747586809949,3.88696699,2572.7,2572.6,8.9053]
[1747586811081,3.88696699,2572.7,2572.6,0.7963]
[1747586811253,3.88670544,2572.9,2572.6,8.9043]
[1747586811454,3.88688816,2572.8,2572.6,8.9043]
[1747586811891,3.88696699,2572.7,2572.6,8.9043]
[1747586812186,3.88688481,2572.8,2572.6,8.9043]
[1747586812592,3.88696699,2572.7,2572.6,8.9043]
[1747586812996,3.88688664,2572.8,2572.6,8.9043]
[1747586813198,4.43590969,2573.4,2572.6,8.9043]
[1747586813199,3.88662922,2573.0,2572.6,8.9043]
[1747586813373,3.88637264,2573.1,2572.6,10.33673]
[1747586813569,3.8864412,2573.1,2572.6,10.33673]
[1747586813877,3.8864412,2573.1,2572.6,2.22873]
[1747586813878,3.88673331,2572.9,2572.6,2.22873]
[1747586814092,3.88673331,2572.9,2572.7,8.108]
[1747586814293,3.88677881,2572.9,2572.8,8.108]
[1747586814612,0.55,2573.4,2572.8,8.108]
[1747586814797,3.88609512,2573.3,2572.8,9.141673]
[1747586815107,3.88575415,2573.6,2572.9,4.73535868]
[1747586815289,3.88598611,2573.4,2572.9,4.69649652]
[1747586815605,3.88617259,2573.3,2573.0,18.10981695]
[1747586816022,3.88589665,2573.5,2573.0,18.10981695]